[Event "Live Chess"]
[Site "Chess.com"]
[Date "2023.05.21"]
[Round "-"]
[White "martynstanley"]
[Black "Duke_of_Bebington"]
[Result "0-1"]
[WhiteElo "1015"]
[BlackElo "1557"]
[TimeControl "300"]
[EndTime "7:10:45 PDT"]
[Termination "Duke_of_Bebington won by checkmate"]

1. d4 {[%clk 0:04:59.5]} 1... d5 {[%clk 0:04:58.7]} 2. e3 {[%clk 0:04:59]} 2...
Bf5 {[%clk 0:04:54]} 3. Bd3 {[%clk 0:04:58]} 3... Bxd3 {[%clk 0:04:52.2]} 4.
cxd3 {[%clk 0:04:57.5]} 4... Nf6 {[%clk 0:04:51.8]} 5. f4 {[%clk 0:04:56.9]}
5... e6 {[%clk 0:04:47.2]} 6. Nf3 {[%clk 0:04:56.4]} 6... c5 {[%clk 0:04:46.3]}
7. O-O {[%clk 0:04:55.6]} 7... cxd4 {[%clk 0:04:45.3]} 8. exd4 {[%clk
0:04:53.3]} 8... Nc6 {[%clk 0:04:44.2]} 9. Ne5 {[%clk 0:04:52.5]} 9... Bd6
{[%clk 0:04:41]} 10. Nd2 {[%clk 0:04:50.7]} 10... O-O {[%clk 0:04:39.7]} 11. Rf3
{[%clk 0:04:49.3]} 11... Nxd4 {[%clk 0:04:38.8]} 12. Rh3 {[%clk 0:04:46.9]}
12... Nf5 {[%clk 0:04:33.6]} 13. Ng4 {[%clk 0:04:44.5]} 13... Bxf4 {[%clk
0:04:26.2]} 14. Nxf6+ {[%clk 0:04:42.8]} 14... Qxf6 {[%clk 0:04:24.6]} 15. Qh5
{[%clk 0:04:41.6]} 15... Bh6 {[%clk 0:04:19.4]} 16. Nf3 {[%clk 0:04:39.7]} 16...
Bxc1 {[%clk 0:04:03.9]} 17. Rxc1 {[%clk 0:04:38.4]} 17... h6 {[%clk 0:04:02.6]}
18. Rd1 {[%clk 0:04:31.2]} 18... Rac8 {[%clk 0:03:53.8]} 19. d4 {[%clk
0:04:29.3]} 19... Rc2 {[%clk 0:03:48.1]} 20. Ne5 {[%clk 0:04:27.4]} 20... Qg5
{[%clk 0:03:26.8]} 21. Qxg5 {[%clk 0:04:25.7]} 21... hxg5 {[%clk 0:03:26.7]} 22.
g4 {[%clk 0:04:16.6]} 22... Nh4 {[%clk 0:03:22.8]} 23. Kf1 {[%clk 0:04:11.4]}
23... Rfc8 {[%clk 0:03:17.1]} 24. Rhd3 {[%clk 0:04:08.6]} 24... Rxb2 {[%clk
0:03:13.9]} 25. Nf3 {[%clk 0:04:06]} 25... Ng6 {[%clk 0:03:05.4]} 26. Nxg5
{[%clk 0:04:04.6]} 26... Rxh2 {[%clk 0:02:59.2]} 27. Nf3 {[%clk 0:04:02.1]}
27... Rxa2 {[%clk 0:02:54.5]} 28. R1d2 {[%clk 0:04:00.2]} 28... Rc1+ {[%clk
0:02:45.3]} 29. Ke2 {[%clk 0:03:58.3]} 29... Nf4+ {[%clk 0:02:43.4]} 30. Ke3
{[%clk 0:03:55.6]} 30... Nxd3 {[%clk 0:02:28]} 31. Rxa2 {[%clk 0:03:54.2]} 31...
Nb4 {[%clk 0:02:22.1]} 32. Rxa7 {[%clk 0:03:52.6]} 32... Rc3+ {[%clk 0:02:19.5]}
33. Kf4 {[%clk 0:03:51.4]} 33... Nd3+ {[%clk 0:02:16.5]} 34. Kg3 {[%clk
0:03:46]} 34... Ne1 {[%clk 0:02:14.1]} 35. Ra8+ {[%clk 0:03:42.2]} 35... Kh7
{[%clk 0:02:12.6]} 36. Kf2 {[%clk 0:03:40.4]} 36... Nxf3 {[%clk 0:02:10.1]} 37.
Rb8 {[%clk 0:03:38.7]} 37... Nxd4 {[%clk 0:02:05.8]} 38. Rxb7 {[%clk 0:03:37.6]}
38... Kg6 {[%clk 0:02:05.1]} 39. Rb4 {[%clk 0:03:32.6]} 39... Nc6 {[%clk
0:01:59.8]} 40. Ra4 {[%clk 0:03:28]} 40... Ne5 {[%clk 0:01:58.7]} 41. Kg2 {[%clk
0:03:25.4]} 41... Nc4 {[%clk 0:01:54.3]} 42. Kf2 {[%clk 0:03:21.4]} 42... Rd3
{[%clk 0:01:49.4]} 43. Ke2 {[%clk 0:03:19]} 43... Rd4 {[%clk 0:01:47.7]} 44. Kf3
{[%clk 0:03:16.5]} 44... Nd2+ {[%clk 0:01:45.3]} 45. Kg3 {[%clk 0:03:14.4]}
45... Rxa4 {[%clk 0:01:45.2]} 46. Kh4 {[%clk 0:03:11.8]} 46... Nf3+ {[%clk
0:01:43]} 47. Kg3 {[%clk 0:03:10.3]} 47... Ng5 {[%clk 0:01:40.2]} 48. Kg2 {[%clk
0:03:08.3]} 48... Rxg4+ {[%clk 0:01:38.5]} 49. Kf2 {[%clk 0:03:06.9]} 49... Re4
{[%clk 0:01:35.5]} 50. Kf1 {[%clk 0:03:03.9]} 50... d4 {[%clk 0:01:34.8]} 51.
Kf2 {[%clk 0:03:02.9]} 51... d3 {[%clk 0:01:34.5]} 52. Kg3 {[%clk 0:03:02.4]}
52... d2 {[%clk 0:01:33.2]} 53. Kg2 {[%clk 0:03:01.8]} 53... d1=Q {[%clk
0:01:31.9]} 54. Kf2 {[%clk 0:03:01.5]} 54... Qf3+ {[%clk 0:01:29.3]} 55. Kg1
{[%clk 0:03:00.2]} 55... Rg4+ {[%clk 0:01:28.9]} 56. Kh2 {[%clk 0:02:59.1]}
56... Qh3# {[%clk 0:01:28.5]} 0-1

[Event "Live Chess"]
[Site "Chess.com"]
[Date "2023.05.21"]
[Round "-"]
[White "Olisingapore"]
[Black "OleksiyJr1"]
[Result "1-0"]
[WhiteElo "1792"]
[BlackElo "1035"]
[TimeControl "300"]
[EndTime "7:10:48 PDT"]
[Termination "Olisingapore won by resignation"]

1. d4 {[%clk 0:04:56.8]} 1... Nf6 {[%clk 0:04:58]} 2. c4 {[%clk 0:04:56.4]} 2...
c6 {[%clk 0:04:56.4]} 3. g3 {[%clk 0:04:55.8]} 3... g5 {[%clk 0:04:52.6]} 4. Bg2
{[%clk 0:04:55]} 4... h6 {[%clk 0:04:18.9]} 5. h4 {[%clk 0:04:38.2]} 5... g4
{[%clk 0:04:14]} 6. e4 {[%clk 0:04:33.8]} 6... e6 {[%clk 0:04:06.4]} 7. e5
{[%clk 0:04:29.6]} 7... Nh7 {[%clk 0:03:34.9]} 8. Qxg4 {[%clk 0:04:23.9]} 8...
f6 {[%clk 0:03:22.5]} 9. Qg6+ {[%clk 0:04:13.1]} 9... Ke7 {[%clk 0:03:16.5]} 10.
Bxh6 {[%clk 0:03:56.4]} 10... Bxh6 {[%clk 0:03:11.8]} 11. Qxh6 {[%clk
0:03:53.1]} 1-0

[Event "Live Chess"]
[Site "Chess.com"]
[Date "2023.05.21"]
[Round "-"]
[White "peleus16"]
[Black "DoYouLikeCurry"]
[Result "0-1"]
[WhiteElo "1595"]
[BlackElo "1458"]
[TimeControl "300"]
[EndTime "7:11:16 PDT"]
[Termination "DoYouLikeCurry won by checkmate"]

1. d4 {[%clk 0:04:53.7]} 1... d5 {[%clk 0:04:58.3]} 2. Nc3 {[%clk 0:04:49.9]}
2... Nf6 {[%clk 0:04:53.6]} 3. Bf4 {[%clk 0:04:46.5]} 3... Bf5 {[%clk
0:04:50.4]} 4. f3 {[%clk 0:04:36.2]} 4... e6 {[%clk 0:04:47.3]} 5. g4 {[%clk
0:04:27.1]} 5... Bg6 {[%clk 0:04:45]} 6. e3 {[%clk 0:04:15.7]} 6... c5 {[%clk
0:04:41.8]} 7. Nh3 {[%clk 0:03:58.7]} 7... cxd4 {[%clk 0:04:38.9]} 8. Qxd4
{[%clk 0:03:52.8]} 8... Nc6 {[%clk 0:04:34.5]} 9. Qa4 {[%clk 0:03:50.3]} 9...
Qb6 {[%clk 0:04:30.5]} 10. Nb5 {[%clk 0:03:38]} 10... Rc8 {[%clk 0:04:17.8]} 11.
O-O-O {[%clk 0:03:30.5]} 11... Bc5 {[%clk 0:04:11.3]} 12. Nd4 {[%clk 0:03:10.2]}
12... O-O {[%clk 0:04:05.9]} 13. Kb1 {[%clk 0:03:03.8]} 13... Nxd4 {[%clk
0:04:01.3]} 14. exd4 {[%clk 0:02:59.8]} 14... Be7 {[%clk 0:03:56.4]} 15. Be3
{[%clk 0:02:50.9]} 15... Qc7 {[%clk 0:03:51.4]} 16. Nf4 {[%clk 0:02:43.4]} 16...
Bxc2+ {[%clk 0:03:49.5]} 17. Ka1 {[%clk 0:02:37.5]} 17... Bxa4 {[%clk
0:03:47.1]} 18. g5 {[%clk 0:02:31.8]} 18... Bxd1 {[%clk 0:03:44.1]} 19. Bd3
{[%clk 0:02:27.2]} 19... Bxf3 {[%clk 0:03:40.6]} 20. gxf6 {[%clk 0:02:23]} 20...
Bxh1 {[%clk 0:03:36.1]} 21. fxe7 {[%clk 0:02:21.2]} 21... Qc1+ {[%clk
0:03:27.8]} 22. Bxc1 {[%clk 0:02:13.8]} 22... Rxc1+ {[%clk 0:03:26.8]} 23. Bb1
{[%clk 0:02:11.9]} 23... Be4 {[%clk 0:03:24.4]} 24. exf8=Q+ {[%clk 0:02:03.5]}
24... Kxf8 {[%clk 0:03:23.1]} 25. a3 {[%clk 0:01:36.4]} 25... Rxb1+ {[%clk
0:03:20.5]} 26. Ka2 {[%clk 0:01:33.8]} 26... Rf1 {[%clk 0:03:15.3]} 27. Ne2
{[%clk 0:01:29.3]} 27... Rf2 {[%clk 0:03:09.7]} 28. Nc3 {[%clk 0:01:26.7]} 28...
Bg6 {[%clk 0:03:08]} 29. Kb3 {[%clk 0:01:22]} 29... Rxh2 {[%clk 0:03:06.6]} 30.
Na4 {[%clk 0:01:13.4]} 30... Bc2+ {[%clk 0:03:04.9]} 31. Kb4 {[%clk 0:01:10.5]}
31... Bxa4 {[%clk 0:03:04.8]} 32. Kxa4 {[%clk 0:01:08.3]} 32... Rxb2 {[%clk
0:03:04.2]} 33. Ka5 {[%clk 0:01:04.5]} 33... Rd2 {[%clk 0:03:00]} 34. a4 {[%clk
0:00:58.4]} 34... b6+ {[%clk 0:02:55.4]} 35. Kb5 {[%clk 0:00:51.8]} 35... Rxd4
{[%clk 0:02:52.4]} 36. Ka6 {[%clk 0:00:48.9]} 36... Rxa4+ {[%clk 0:02:51.1]} 37.
Kb7 {[%clk 0:00:47.3]} 37... d4 {[%clk 0:02:47.8]} 38. Kc6 {[%clk 0:00:43.3]}
38... d3 {[%clk 0:02:46.6]} 39. Kd6 {[%clk 0:00:40]} 39... d2 {[%clk 0:02:45.4]}
40. Kc7 {[%clk 0:00:37.1]} 40... d1=Q {[%clk 0:02:44.2]} 41. Kb7 {[%clk
0:00:35.2]} 41... Qd7+ {[%clk 0:02:42.1]} 42. Kb8 {[%clk 0:00:30.1]} 42... Qd8+
{[%clk 0:02:39]} 43. Kb7 {[%clk 0:00:26.4]} 43... Qd5+ {[%clk 0:02:36.3]} 44.
Kb8 {[%clk 0:00:24.3]} 44... b5 {[%clk 0:02:23.1]} 45. Kc7 {[%clk 0:00:19.2]}
45... b4 {[%clk 0:02:21.8]} 46. Kc8 {[%clk 0:00:12.7]} 46... b3 {[%clk
0:02:20.8]} 47. Kc7 {[%clk 0:00:09.9]} 47... b2 {[%clk 0:02:20]} 48. Kc8 {[%clk
0:00:08.7]} 48... b1=Q {[%clk 0:02:19.2]} 49. Kc7 {[%clk 0:00:07]} 49... Rc4#
{[%clk 0:02:18.7]} 0-1

[Event "Live Chess"]
[Site "Chess.com"]
[Date "2023.05.21"]
[Round "-"]
[White "worldchessleaguelive"]
[Black "Delacorta"]
[Result "1-0"]
[WhiteElo "1364"]
[BlackElo "1373"]
[TimeControl "300"]
[EndTime "7:11:23 PDT"]
[Termination "worldchessleaguelive won by resignation"]

1. d4 {[%clk 0:04:59.3]} 1... e6 {[%clk 0:04:59.2]} 2. Bf4 {[%clk 0:04:57.7]}
2... f5 {[%clk 0:04:58.1]} 3. Nf3 {[%clk 0:04:56.1]} 3... Nf6 {[%clk 0:04:57.2]}
4. e3 {[%clk 0:04:55.4]} 4... d5 {[%clk 0:04:54.9]} 5. Nbd2 {[%clk 0:04:54.8]}
5... Bd6 {[%clk 0:04:53.1]} 6. Be2 {[%clk 0:04:54.4]} 6... Bxf4 {[%clk
0:04:51.9]} 7. exf4 {[%clk 0:04:54]} 7... O-O {[%clk 0:04:51]} 8. g3 {[%clk
0:04:53.6]} 8... Bd7 {[%clk 0:04:45.8]} 9. O-O {[%clk 0:04:52.7]} 9... Be8
{[%clk 0:04:44.8]} 10. Ne5 {[%clk 0:04:51.8]} 10... Ne4 {[%clk 0:04:40]} 11.
Nxe4 {[%clk 0:04:50.9]} 11... fxe4 {[%clk 0:04:27.6]} 12. Bg4 {[%clk 0:04:45.7]}
12... Qe7 {[%clk 0:04:20]} 13. f3 {[%clk 0:04:43.7]} 13... Nd7 {[%clk
0:04:01.5]} 14. fxe4 {[%clk 0:04:40.7]} 14... dxe4 {[%clk 0:03:58.8]} 15. Qe2
{[%clk 0:04:31.7]} 15... Nf6 {[%clk 0:03:45.8]} 16. Bh3 {[%clk 0:04:25]} 16...
a6 {[%clk 0:03:41.6]} 17. Bg2 {[%clk 0:04:23.8]} 17... Bh5 {[%clk 0:03:31.8]}
18. g4 {[%clk 0:04:18.2]} 18... Nxg4 {[%clk 0:02:40.5]} 19. Nxg4 {[%clk
0:04:12.6]} 19... c5 {[%clk 0:02:19.1]} 20. Nh6+ {[%clk 0:04:09.1]} 20... gxh6
{[%clk 0:02:11.6]} 21. Qxh5 {[%clk 0:04:08]} 21... cxd4 {[%clk 0:02:10.2]} 22.
Bxe4 {[%clk 0:03:59.5]} 22... Rac8 {[%clk 0:01:58.6]} 23. Kh1 {[%clk 0:03:58.5]}
23... Rc5 {[%clk 0:01:57]} 24. Rg1+ {[%clk 0:03:56.4]} 24... Kh8 {[%clk
0:01:55.2]} 25. Qxh6 {[%clk 0:03:52.8]} 25... Rc7 {[%clk 0:00:54.4]} 26. Rg2
{[%clk 0:03:38.2]} 26... Rxf4 {[%clk 0:00:46.6]} 27. Qxf4 {[%clk 0:03:31.8]} 1-0

[Event "Live Chess"]
[Site "Chess.com"]
[Date "2023.05.21"]
[Round "-"]
[White "KeithArkell"]
[Black "RichardABates"]
[Result "1-0"]
[WhiteElo "2476"]
[BlackElo "2144"]
[TimeControl "300"]
[EndTime "7:11:27 PDT"]
[Termination "KeithArkell won on time"]

1. d4 {[%clk 0:04:58.2]} 1... Nf6 {[%clk 0:04:56.5]} 2. Nf3 {[%clk 0:04:57.4]}
2... g6 {[%clk 0:04:52.8]} 3. c4 {[%clk 0:04:56.5]} 3... Bg7 {[%clk 0:04:51.2]}
4. Nc3 {[%clk 0:04:55.8]} 4... d5 {[%clk 0:04:49]} 5. cxd5 {[%clk 0:04:53.9]}
5... Nxd5 {[%clk 0:04:47.8]} 6. g3 {[%clk 0:04:53.4]} 6... O-O {[%clk
0:04:44.6]} 7. Bg2 {[%clk 0:04:52.6]} 7... Nxc3 {[%clk 0:04:42.2]} 8. bxc3
{[%clk 0:04:51.1]} 8... c5 {[%clk 0:04:40.5]} 9. O-O {[%clk 0:04:50.3]} 9... Nc6
{[%clk 0:04:33.8]} 10. e3 {[%clk 0:04:49.2]} 10... Qc7 {[%clk 0:04:29]} 11. Ba3
{[%clk 0:04:47.2]} 11... cxd4 {[%clk 0:04:23.3]} 12. cxd4 {[%clk 0:04:46.1]}
12... Rd8 {[%clk 0:04:20.1]} 13. Rc1 {[%clk 0:04:38.6]} 13... Qa5 {[%clk
0:04:13.5]} 14. Qb3 {[%clk 0:04:31.3]} 14... Be6 {[%clk 0:04:11.4]} 15. Qxb7
{[%clk 0:04:30.1]} 15... Qxa3 {[%clk 0:04:07]} 16. Rxc6 {[%clk 0:04:20.2]} 16...
Bd5 {[%clk 0:04:04.3]} 17. Ne5 {[%clk 0:04:19.2]} 17... Bxc6 {[%clk 0:03:44]}
18. Nxc6 {[%clk 0:04:17]} 18... Re8 {[%clk 0:03:32.2]} 19. Nxe7+ {[%clk
0:04:13.7]} 19... Kf8 {[%clk 0:03:21.5]} 20. Nc6 {[%clk 0:03:28.5]} 20... Qd6
{[%clk 0:03:01.1]} 21. Nxa7 {[%clk 0:03:07]} 21... Rab8 {[%clk 0:02:54.7]} 22.
Qc6 {[%clk 0:03:02.6]} 22... Qe7 {[%clk 0:02:34.7]} 23. Nb5 {[%clk 0:02:25.2]}
23... Rec8 {[%clk 0:02:33]} 24. Qd5 {[%clk 0:02:21.7]} 24... Rd8 {[%clk
0:02:29.6]} 25. Qb3 {[%clk 0:02:19.1]} 25... Rdc8 {[%clk 0:02:06.8]} 26. a4
{[%clk 0:02:17.9]} 26... h5 {[%clk 0:02:03.2]} 27. h4 {[%clk 0:02:16.2]} 27...
g5 {[%clk 0:01:58.8]} 28. hxg5 {[%clk 0:02:14.4]} 28... Qxg5 {[%clk 0:01:57.5]}
29. Qd5 {[%clk 0:02:11.1]} 29... Qg6 {[%clk 0:01:40.4]} 30. Be4 {[%clk
0:02:04.1]} 30... Qh6 {[%clk 0:01:33.2]} 31. Nd6 {[%clk 0:02:00.8]} 31... Rc7
{[%clk 0:01:27.3]} 32. Nb5 {[%clk 0:01:47.4]} 32... Re7 {[%clk 0:01:22.6]} 33.
Kg2 {[%clk 0:01:29.7]} 33... Rbe8 {[%clk 0:01:13.5]} 34. Bf3 {[%clk 0:01:27.3]}
34... h4 {[%clk 0:01:06.3]} 35. Rh1 {[%clk 0:01:24]} 35... Bf6 {[%clk
0:01:04.9]} 36. Nd6 {[%clk 0:01:16.3]} 36... Rd8 {[%clk 0:01:00]} 37. Nf5 {[%clk
0:01:09.4]} 37... Rxd5 {[%clk 0:00:53.5]} 38. Nxh6 {[%clk 0:01:07.7]} 38... Rg5
{[%clk 0:00:50.3]} 39. Rxh4 {[%clk 0:00:56.3]} 39... Rg6 {[%clk 0:00:47.1]} 40.
Rh5 {[%clk 0:00:55]} 40... Ra7 {[%clk 0:00:38.9]} 41. a5 {[%clk 0:00:47.4]}
41... Rg5 {[%clk 0:00:36]} 42. Nf5 {[%clk 0:00:31.4]} 42... Rxa5 {[%clk
0:00:31.8]} 43. Rxg5 {[%clk 0:00:28.3]} 43... Bxg5 {[%clk 0:00:30.4]} 44. Nd6
{[%clk 0:00:27.8]} 44... Ke7 {[%clk 0:00:28]} 45. Ne4 {[%clk 0:00:26.5]} 45...
Bh6 {[%clk 0:00:26.5]} 46. g4 {[%clk 0:00:22.5]} 46... Ra2 {[%clk 0:00:24.8]}
47. Ng3 {[%clk 0:00:19.7]} 47... Bxe3 {[%clk 0:00:23]} 48. Nf5+ {[%clk
0:00:18.8]} 48... Kf6 {[%clk 0:00:21.7]} 49. Nxe3 {[%clk 0:00:18.7]} 49... Kg5
{[%clk 0:00:20.8]} 50. Kg3 {[%clk 0:00:18.2]} 50... Rd2 {[%clk 0:00:19.2]} 51.
Nf5 {[%clk 0:00:17.7]} 51... Rd3 {[%clk 0:00:16.6]} 52. Kg2 {[%clk 0:00:16.5]}
52... Kf4 {[%clk 0:00:15.5]} 53. Be2 {[%clk 0:00:16]} 53... Rd2 {[%clk
0:00:14.2]} 54. Kf1 {[%clk 0:00:15.4]} 54... Ra2 {[%clk 0:00:10.7]} 55. Nd6
{[%clk 0:00:14.1]} 55... Ra1+ {[%clk 0:00:08.3]} 56. Kg2 {[%clk 0:00:13.4]}
56... Ra2 {[%clk 0:00:07.5]} 57. Bf3 {[%clk 0:00:12]} 57... Rd2 {[%clk 0:00:06]}
58. Nxf7 {[%clk 0:00:10.7]} 58... Rxd4 {[%clk 0:00:04.7]} 59. g5 {[%clk
0:00:10.2]} 59... Rd7 {[%clk 0:00:02.7]} 60. g6 {[%clk 0:00:09.6]} 60... Kf5
{[%clk 0:00:00.8]} 61. Bg4+ {[%clk 0:00:07.3]} 1-0

[Event "Live Chess"]
[Site "Chess.com"]
[Date "2023.05.21"]
[Round "-"]
[White "AbilifyXL"]
[Black "OleksiyJr1"]
[Result "1-0"]
[WhiteElo "1970"]
[BlackElo "1035"]
[TimeControl "300"]
[EndTime "7:11:47 PDT"]
[Termination "AbilifyXL won by resignation"]

1. d4 {[%clk 0:04:59.1]} 1... Nf6 {[%clk 0:04:58.5]} 2. c4 {[%clk 0:04:59]} 2...
c6 {[%clk 0:04:57.5]} 3. Nc3 {[%clk 0:04:58.4]} 3... d5 {[%clk 0:04:55.3]} 4.
cxd5 {[%clk 0:04:58.3]} 4... Nxd5 {[%clk 0:04:54.7]} 5. Nf3 {[%clk 0:04:58.2]}
5... Nxc3 {[%clk 0:04:53.9]} 6. bxc3 {[%clk 0:04:57.4]} 6... e6 {[%clk
0:04:53.8]} 7. e4 {[%clk 0:04:56.8]} 7... f5 {[%clk 0:04:52.1]} 8. Bd3 {[%clk
0:04:53.9]} 8... Bd6 {[%clk 0:04:48.5]} 9. O-O {[%clk 0:04:51.8]} 9... O-O
{[%clk 0:04:46.7]} 10. Re1 {[%clk 0:04:50.4]} 10... Nd7 {[%clk 0:04:44.5]} 11.
Qb3 {[%clk 0:04:48.9]} 11... fxe4 {[%clk 0:04:41.9]} 12. Qxe6+ {[%clk
0:04:45.3]} 12... Kh8 {[%clk 0:04:37.3]} 13. Qxe4 {[%clk 0:04:43.9]} 1-0

[Event "Live Chess"]
[Site "Chess.com"]
[Date "2023.05.21"]
[Round "-"]
[White "Cimon"]
[Black "terrub10"]
[Result "1-0"]
[WhiteElo "1844"]
[BlackElo "570"]
[TimeControl "300"]
[EndTime "7:11:54 PDT"]
[Termination "Cimon won by checkmate"]

1. d4 {[%clk 0:04:57]} 1... d5 {[%clk 0:04:57.1]} 2. c4 {[%clk 0:04:55.4]} 2...
dxc4 {[%clk 0:04:54.5]} 3. e4 {[%clk 0:04:51.5]} 3... Nf6 {[%clk 0:04:52]} 4.
Nc3 {[%clk 0:04:49.5]} 4... Nc6 {[%clk 0:04:48.1]} 5. d5 {[%clk 0:04:44.8]} 5...
Bg4 {[%clk 0:04:39.3]} 6. f3 {[%clk 0:04:41.8]} 6... Ne5 {[%clk 0:04:33.3]} 7.
fxg4 {[%clk 0:04:35.7]} 7... Nexg4 {[%clk 0:04:31]} 8. Nf3 {[%clk 0:04:32.9]}
8... e5 {[%clk 0:04:24.7]} 9. Bxc4 {[%clk 0:04:22.8]} 9... Bb4 {[%clk
0:04:11.3]} 10. Qe2 {[%clk 0:04:11.5]} 10... O-O {[%clk 0:03:14.4]} 11. h3
{[%clk 0:04:00.7]} 11... Bxc3+ {[%clk 0:03:10.8]} 12. bxc3 {[%clk 0:03:59.3]}
12... Re8 {[%clk 0:02:55.7]} 13. hxg4 {[%clk 0:03:56.4]} 13... Nxg4 {[%clk
0:02:51.1]} 14. Ng5 {[%clk 0:03:29.4]} 14... c6 {[%clk 0:02:43.6]} 15. Qxg4
{[%clk 0:03:25.8]} 15... cxd5 {[%clk 0:02:39.7]} 16. Bxd5 {[%clk 0:03:24.1]}
16... h6 {[%clk 0:02:25.9]} 17. Nxf7 {[%clk 0:03:20.9]} 17... Qf6 {[%clk
0:02:15.4]} 18. Nxh6+ {[%clk 0:03:14.9]} 18... Kh7 {[%clk 0:02:06.6]} 19. Nf5+
{[%clk 0:03:09.3]} 19... Qh6 {[%clk 0:01:47.9]} 20. Rxh6+ {[%clk 0:03:06]} 20...
gxh6 {[%clk 0:01:46.7]} 21. Qg7# {[%clk 0:03:04.7]} 1-0